bitfinex/quotes_SOLUSD_20250731
["timestamp","ask_amount","ask_price","bid_price","bid_amount"]
[1753933071755,0.03,180.34,180.29,3.1918131]
[1753933072575,3.2218131,180.34,180.29,3.1918131]
[1753933077283,3.2218131,180.34,180.28,3.1918131]
[1753933082180,3.2218131,180.34,180.27,0.06]
[1753933082387,0.03,180.34,180.29,3.1918131]
[1753933083697,0.03,180.34,180.3,3.1918131]
[1753933083883,0.03,180.34,180.32,3.1918131]
[1753933089406,0.03,180.34,180.33,3.1918131]
[1753933089698,0.03,180.34,180.32,3.1918131]
[1753933091394,0.03,180.34,180.27,0.06]
[1753933091578,3.1918131,180.33,180.28,3.1918131]
[1753933092588,0.03,180.34,180.28,3.1918131]
[1753933092589,3.2218131,180.34,180.28,3.1918131]
[1753933093601,3.1918131,180.33,180.28,3.1918131]
[1753933094906,3.2218131,180.34,180.29,3.1918131]
[1753933095403,0.03,180.34,180.3,3.1918131]
[1753933097808,3.2218131,180.34,180.29,3.1918131]
[1753933100604,3.2218131,180.34,180.27,0.06]
[1753933100605,0.03,180.34,180.27,0.06]
[1753933100823,0.03,180.34,180.3,3.1918131]
[1753933101406,0.03,180.34,180.29,3.1918131]
[1753933103618,0.03,180.34,180.27,0.06]
[1753933103919,0.03,180.34,180.29,3.1918131]
[1753933106210,0.03,180.34,180.27,0.06]
[1753933106511,0.03,180.34,180.29,3.1918131]
[1753933107915,0.03,180.34,180.3,3.1918131]
[1753933109988,0.03,180.34,180.29,3.1918131]
[1753933114912,0.03,180.34,180.3,3.1918131]
[1753933115110,0.03,180.34,180.31,3.1918131]
[1753933116918,0.03,180.34,180.32,3.1918131]
[1753933118019,0.03,180.34,180.27,12.8272524]
[1753933118323,0.03,180.34,180.32,3.1918131]
[1753933119525,0.03,180.34,180.31,3.1918131]
[1753933121524,0.03,180.34,180.3,3.1918131]
[1753933123826,0.03,180.34,180.31,3.1918131]
[1753933125412,0.03,180.34,180.27,12.8272524]
[1753933125625,0.03,180.34,180.31,3.1918131]
[1753933127227,0.03,180.34,180.3,3.1918131]
[1753933128024,0.03,180.34,180.31,3.1918131]
[1753933128419,0.03,180.34,180.27,0.06]
[1753933128625,0.03,180.34,180.31,3.1918131]
[1753933131530,0.03,180.34,180.27,0.06]
[1753933131716,0.03,180.34,180.31,3.1918131]
[1753933135429,0.03,180.34,180.27,0.06]
[1753933135430,0.03,180.34,180.3,3.1918131]
[1753933138739,0.03,180.34,180.31,3.1918131]
[1753933140043,0.03,180.34,180.3,3.1918131]
[1753933140839,0.03,180.34,180.31,3.1918131]
[1753933142533,0.03,180.34,180.27,12.8272524]
[1753933142832,0.03,180.34,180.33,3.1918131]
[1753933148021,1e-08,180.34,180.3,16.78468397]
[1753933148221,1e-08,180.34,180.33,3.1918131]
[1753933149148,0.03,180.36,180.33,3.1918131]
[1753933149313,0.03,180.36,180.35,3.1918131]
[1753933149515,0.03,180.36,180.33,3.1918131]
[1753933150124,0.03,180.36,180.29,16.78468397]
[1753933150125,0.03,180.36,180.35,3.1918131]
[1753933151547,0.03,180.36,180.34,3.1918131]
[1753933152340,0.03,180.36,180.33,3.1918131]
[1753933152530,0.03,180.36,180.29,16.78468397]
[1753933152531,0.03,180.36,180.32,3.1918131]
[1753933153346,3.2218131,180.36,180.3,3.1918131]
[1753933153747,0.03,180.36,180.31,3.1918131]
[1753933154444,0.03,180.36,180.33,3.1918131]
[1753933155933,0.03,180.36,180.32,3.1918131]
[1753933157424,0.03,180.36,180.31,3.1918131]
[1753933157623,3.2218131,180.36,180.28,16.78468397]
[1753933157929,3.2218131,180.36,180.3,3.1918131]
[1753933158131,3.1918131,180.35,180.29,3.1918131]
[1753933159119,3.1918131,180.35,180.3,3.1918131]
[1753933161752,3.2218131,180.36,180.3,3.1918131]
[1753933162565,0.03,180.36,180.3,3.1918131]
[1753933162732,3.2218131,180.36,180.3,3.1918131]
[1753933164064,3.1918131,180.35,180.3,3.1918131]
[1753933165953,3.2218131,180.36,180.3,3.1918131]
[1753933167158,0.03,180.36,180.3,3.1918131]
[1753933167363,3.2218131,180.36,180.3,3.1918131]
[1753933170156,3.2218131,180.36,180.32,3.1918131]
[1753933170157,0.03,180.36,180.32,3.1918131]
[1753933171633,0.03,180.36,180.31,3.1918131]
[1753933171829,0.03,180.36,180.32,3.1918131]
[1753933179364,0.03,180.36,180.3,0.06]
[1753933179561,0.03,180.36,180.31,3.1918131]
[1753933180879,0.03,180.36,180.3,0.06]
[1753933181056,0.03,180.36,180.31,3.1918131]
[1753933182062,3.2218131,180.36,180.3,0.06]
[1753933182269,3.2218131,180.36,180.31,3.1918131]
[1753933183568,3.1918131,180.35,180.3,0.06]
[1753933183752,3.1918131,180.34,180.3,0.06]
[1753933188071,3.1918131,180.35,180.3,3.2518131]
[1753933188272,0.03,180.36,180.31,3.1918131]
[1753933192768,0.03,180.36,180.32,3.1918131]
[1753933193670,0.03,180.36,180.34,3.1918131]
[1753933195360,0.03,180.36,180.35,3.1918131]
[1753933198984,0.03,180.37,180.35,3.1918131]
[1753933199362,0.03,180.37,180.36,3.1918131]
[1753933200273,0.03,180.38,180.36,3.1918131]
[1753933200472,0.03,180.38,180.32,16.78468397]
[1753933200473,0.03,180.38,180.37,3.1918131]
[1753933209499,3.2218131,180.38,180.33,3.1918131]
[1753933210204,0.03,180.38,180.34,3.1918131]
[1753933214711,3.1918131,180.37,180.3,16.84468397]
[1753933214900,3.1918131,180.36,180.3,0.06]
[1753933215207,0.03,180.38,180.32,3.1918131]
[1753933215400,3.1918131,180.37,180.32,3.1918131]
[1753933215599,0.03,180.38,180.32,3.1918131]
[1753933215806,3.1918131,180.37,180.32,3.1918131]
[1753933220811,3.1918131,180.37,180.31,3.1918131]
[1753933222099,3.2218131,180.37,180.31,3.1918131]
[1753933223710,3.2218131,180.37,180.32,3.1918131]
[1753933228214,3.2218131,180.37,180.3,0.06]
[1753933228516,3.2218131,180.37,180.32,3.1918131]
[1753933232210,3.1918131,180.33,180.3,0.06]
[1753933232935,3.1918131,180.35,180.3,0.06]
[1753933234117,3.1918131,180.34,180.3,0.06]
[1753933239518,0.03,180.37,180.3,0.06]
[1753933239519,3.1918131,180.33,180.3,0.06]
[1753933240613,3.1918131,180.34,180.3,0.06]
[1753933243623,3.1918131,180.35,180.3,0.06]
[1753933244127,0.03,180.37,180.3,0.06]
[1753933244327,3.1918131,180.36,180.3,3.2518131]
[1753933246430,3.1918131,180.36,180.31,3.1918131]
[1753933248133,3.1918131,180.36,180.3,0.06]
[1753933248444,3.1918131,180.36,180.31,3.1918131]
[1753933250945,3.1918131,180.36,180.3,3.2518131]
[1753933254438,3.1918131,180.36,180.31,3.1918131]
[1753933254941,3.1918131,180.36,180.3,3.2518131]
[1753933256641,3.2218131,180.37,180.31,3.1918131]
[1753933257432,0.03,180.37,180.31,3.1918131]
[1753933257641,3.2218131,180.37,180.31,3.1918131]
[1753933260433,3.1918131,180.36,180.31,3.1918131]
[1753933260953,3.1918131,180.35,180.3,0.06]
[1753933261828,3.1918131,180.35,180.3,3.2518131]
[1753933262748,3.1918131,180.35,180.3,0.06]
[1753933262935,3.1918131,180.33,180.3,0.06]
[1753933263857,3.1918131,180.34,180.3,0.06]
[1753933268262,0.03,180.37,180.3,0.06]
[1753933268474,3.73866653,180.36,180.3,0.06]
[1753933268635,0.03,180.37,180.3,0.06]
[1753933268636,3.1918131,180.34,180.3,0.06]
[1753933270070,3.1918131,180.32,180.3,0.06]
[1753933272147,3.1918131,180.33,180.3,0.06]
[1753933272471,3.73798656,180.35,180.3,0.06]
[1753933272765,3.1918131,180.33,180.3,0.06]
[1753933273736,3.73793878,180.35,180.3,0.06]
[1753933273944,3.1918131,180.33,180.3,0.06]
[1753933278858,3.1918131,180.32,180.3,0.06]
[1753933281554,3.1918131,180.33,180.3,0.06]
[1753933287580,0.03,180.37,180.3,0.06]
[1753933287879,3.1918131,180.34,180.3,0.06]
[1753933291893,3.1918131,180.33,180.3,0.06]
[1753933292186,3.1918131,180.32,180.3,0.06]
[1753933292483,3.1918131,180.31,180.3,0.06]
[1753933301779,12.7672524,180.36,180.3,0.06]
[1753933302081,3.1918131,180.31,180.3,0.06]
[1753933302297,6.92966952,180.31,180.3,0.06]
[1753933302989,23.71435349,180.31,180.3,0.06]
[1753933304191,20.52254039,180.31,180.3,0.06]
[1753933304489,23.71435349,180.31,180.3,0.06]
[1753933312394,20.52254039,180.31,180.3,0.06]
[1753933312694,23.71435349,180.31,180.3,0.06]
[1753933332101,20.52254039,180.31,180.3,0.06]
[1753933332413,23.71435349,180.31,180.3,0.06]
[1753933336920,6.92966952,180.31,180.3,0.06]
[1753933338321,3.73785642,180.31,180.3,0.06]
[1753933338539,3.73972982,180.33,180.3,0.06]
[1753933338723,147.3,180.34,180.3,0.06]
[1753933339022,3.73972682,180.33,180.3,0.06]
[1753933339220,147.3,180.34,180.3,0.06]
[1753933339423,3.73947504,180.33,180.3,0.06]
[1753933339601,150.4918131,180.34,180.3,0.06]
[1753933339798,3.73947592,180.33,180.3,0.06]
[1753933340014,150.4918131,180.34,180.3,0.06]
[1753933340219,147.3,180.34,180.3,0.06]
[1753933340417,150.4918131,180.34,180.3,0.06]
[1753933342429,147.3,180.34,180.3,0.06]
[1753933343305,3.73627675,180.33,180.3,0.06]
[1753933343605,150.4918131,180.34,180.3,0.06]
[1753933343922,3.73534839,180.33,180.3,0.06]
[1753933344121,3.1918131,180.32,180.3,0.06]
[1753933345610,3.1918131,180.33,180.3,0.06]
[1753933352331,16.81468397,180.37,180.3,0.06]
[1753933352532,3.1918131,180.33,180.3,0.06]
[1753933356048,16.81468397,180.37,180.3,0.06]
[1753933356049,3.1918131,180.35,180.3,3.2518131]
[1753933356224,16.81468397,180.37,180.3,3.2518131]
[1753933356425,3.1918131,180.36,180.3,3.2518131]
[1753933357934,16.81468397,180.37,180.3,3.2518131]
[1753933358238,3.1918131,180.35,180.3,3.2518131]
[1753933359038,3.1918131,180.36,180.3,3.2518131]
[1753933359938,3.1918131,180.35,180.3,3.2518131]
[1753933360136,0.03,180.37,180.3,3.2518131]
[1753933360338,3.2218131,180.37,180.32,3.1918131]
[1753933362043,0.03,180.37,180.32,3.1918131]
[1753933362226,0.03,180.37,180.34,3.1918131]
[1753933362420,0.03,180.37,180.35,3.1918131]
[1753933365333,0.03,180.37,180.3,0.06]
[1753933365538,0.03,180.37,180.33,3.1918131]
[1753933373833,0.03,180.37,180.33,3.2518131]
[1753933374834,0.03,180.37,180.34,3.1918131]
[1753933377440,0.03,180.37,180.33,3.2518131]
[1753933382247,0.03,180.37,180.34,3.1918131]
[1753933382453,0.03,180.37,180.33,0.06]
[1753933382654,0.03,180.37,180.34,3.1918131]
[1753933383862,0.03,180.37,180.36,3.1918131]
[1753933387566,0.03,180.37,180.35,3.1918131]
[1753933398274,0.03,180.37,180.33,0.06]
[1753933398455,0.03,180.37,180.35,3.1918131]
[1753933398656,0.03,180.37,180.33,0.06]
[1753933398877,0.03,180.37,180.35,3.1918131]
[1753933403371,0.03,180.37,180.36,3.1918131]
[1753933411795,0.03,180.37,180.33,0.06]
[1753933411983,0.03,180.37,180.36,3.1918131]
[1753933424504,0.03,180.37,180.33,0.06]
[1753933424912,0.03,180.37,180.34,3.1918131]
[1753933425795,0.03,180.37,180.35,3.1918131]
[1753933429192,0.03,180.37,180.34,3.1918131]
[1753933429817,0.03,180.37,180.33,0.06]
[1753933430020,0.03,180.37,180.34,3.1918131]
[1753933439220,0.03,180.37,180.35,3.1918131]
[1753933442019,0.03,180.37,180.34,0.06]
[1753933442318,0.03,180.37,180.35,3.1918131]
[1753933446011,0.03,180.37,180.34,3.2518131]
[1753933448420,0.03,180.37,180.34,0.06]
[1753933448618,0.03,180.37,180.34,3.2518131]
[1753933449631,0.03,180.37,180.34,0.06]
[1753933450720,0.03,180.37,180.36,3.1918131]
[1753933451326,0.03,180.39,180.36,3.1918131]
[1753933451630,0.03,180.39,180.38,3.1918131]
[1753933453035,0.03,180.39,180.38,3.1918131]
[1753933461439,0.03,180.39,180.38,3.2518131]
[1753933465855,0.03,180.39,180.38,0.06]
[1753933466169,0.03,180.39,180.38,3.2518131]
[1753933467938,0.03,180.39,180.38,0.06]
[1753933468248,0.03,180.39,180.38,3.2518131]
[1753933474437,0.03,180.39,180.38,0.06]
[1753933477057,0.03,180.39,180.38,3.2518131]
[1753933477551,0.03,180.4,180.38,3.2518131]
[1753933478057,0.03,180.4,180.39,3.1918131]
[1753933478230,0.03,180.4,180.38,0.06]
[1753933478429,0.03,180.4,180.39,3.1918131]
[1753933479434,0.03,180.4,180.38,3.2518131]
[1753933480335,0.03,180.4,180.38,0.06]
[1753933480658,0.03,180.4,180.38,3.2518131]
[1753933481851,0.03,180.4,180.38,0.06]
[1753933488763,0.03,180.4,180.38,3.2518131]
[1753933490962,0.03,180.42,180.39,3.1918131]
[1753933492767,0.03,180.42,180.4,3.1918131]
[1753933492972,0.03,180.42,180.38,0.06]
[1753933493349,0.03,180.42,180.4,3.1918131]
[1753933494066,0.03,180.42,180.38,0.06]
[1753933494274,0.03,180.42,180.39,3.1918131]
[1753933494571,0.03,180.42,180.38,3.2518131]
[1753933495259,0.03,180.42,180.39,3.1918131]
[1753933497862,0.03,180.42,180.38,0.06]
[1753933498062,0.03,180.42,180.38,3.2518131]
[1753933500074,0.03,180.42,180.38,0.06]
[1753933500281,0.03,180.42,180.38,3.2518131]
[1753933502072,0.03,180.42,180.39,3.1918131]
[1753933502872,0.03,180.42,180.38,0.06]
[1753933502873,0.03,180.42,180.4,3.1918131]
[1753933507681,0.03,180.42,180.41,3.1918131]
[1753933508390,0.03,180.42,180.4,3.1918131]
[1753933509677,0.03,180.42,180.41,3.1918131]
[1753933512456,0.03,180.42,180.4,3.1918131]
[1753933515088,0.03,180.42,180.38,0.06]
[1753933515387,0.03,180.42,180.39,3.1918131]
[1753933517577,0.03,180.42,180.38,3.2518131]
[1753933520287,0.03,180.42,180.39,3.1918131]
[1753933520795,0.03,180.42,180.4,3.1918131]
[1753933522393,0.03,180.42,180.38,0.06]
[1753933522575,0.03,180.42,180.4,3.1918131]
[1753933524194,0.03,180.42,180.38,0.06]
[1753933524380,0.03,180.42,180.4,3.1918131]
[1753933525391,0.03,180.42,180.39,3.1918131]
[1753933526478,3.2218131,180.42,180.38,0.06]
[1753933526878,0.03,180.42,180.38,0.06]
[1753933527067,0.03,180.42,180.4,0.06]
[1753933528893,3.2218131,180.42,180.4,0.06]
[1753933531194,0.03,180.42,180.4,0.06]
[1753933531400,3.2218131,180.42,180.4,0.06]
[1753933533598,3.1918131,180.41,180.4,0.06]
[1753933535896,0.03,180.42,180.4,0.06]
[1753933536088,3.2218131,180.42,180.4,0.06]
[1753933537397,3.1918131,180.41,180.4,0.06]
[1753933540884,3.2218131,180.42,180.4,0.06]
[1753933548011,1e-08,180.42,180.41,3.1918131]
[1753933549491,3.1918131,180.46,180.41,3.1918131]
[1753933553318,3.1918131,180.45,180.4,3.2518131]
[1753933556417,3.1918131,180.45,180.41,3.1918131]
[1753933557105,3.1918131,180.45,180.42,78.64]
[1753933557920,3.1918131,180.46,180.42,78.64]
[1753933562403,3.1918131,180.46,180.42,38.7]
[1753933569206,164.08468397,180.53,180.42,38.7]
[1753933569207,3.1918131,180.45,180.42,38.7]
[1753933569409,3.1918131,180.43,180.41,39.94]
[1753933569608,3.1918131,180.42,180.41,39.94]
[1753933569821,3.1918131,180.42,180.41,78.3]
[1753933574412,3.1918131,180.42,180.41,78.28]
[1753933574911,3.1918131,180.42,180.41,78.3]
[1753933579233,3.1918131,180.42,180.41,39.94]
[1753933579435,3.1918131,180.42,180.41,78.3]
[1753933589834,3.1918131,180.44,180.41,78.3]
[1753933591268,3.73270177,180.47,180.41,78.3]
[1753933591463,3.1918131,180.44,180.41,78.3]
[1753933592660,3.1918131,180.45,180.41,78.3]
[1753933596961,3.1918131,180.46,180.41,81.4918131]
[1753933598758,3.1918131,180.47,180.42,3.1918131]
[1753933599077,3.1918131,180.47,180.43,38.36]
[1753933600544,3.1918131,180.46,180.43,38.36]
[1753933601356,3.1918131,180.46,180.41,43.1318131]
[1753933601678,3.1918131,180.46,180.42,38.36]
[1753933603777,3.73156234,180.48,180.42,38.36]
[1753933604075,3.1918131,180.46,180.42,38.36]
[1753933604379,3.1918131,180.47,180.43,38.34]
[1753933609155,3.1918131,180.46,180.43,38.34]
[1753933612952,21.44839035,180.53,180.43,38.34]
[1753933613183,3.1918131,180.46,180.43,38.34]
[1753933615255,3.1918131,180.46,180.41,43.1918131]
[1753933615579,3.1918131,180.46,180.42,38.34]
[1753933617883,3.1918131,180.46,180.41,43.1918131]
[1753933618070,3.1918131,180.46,180.43,38.34]
[1753933620778,3.1918131,180.46,180.41,43.1918131]
[1753933621077,3.1918131,180.46,180.42,38.34]
[1753933622262,3.1918131,180.45,180.42,38.34]
[1753933622461,3.1918131,180.44,180.42,38.34]
[1753933622774,3.1918131,180.43,180.41,40.0]
[1753933623077,3.1918131,180.42,180.41,40.0]
[1753933623265,3.1918131,180.42,180.41,78.34]
[1753933628885,21.44839035,180.49,180.41,78.34]
[1753933628886,3.1918131,180.43,180.41,78.34]
[1753933632702,6.92397779,180.46,180.41,81.5318131]
[1753933632992,3.1918131,180.46,180.41,81.5318131]
[1753933635470,3.1918131,180.47,180.42,3.1918131]
[1753933635778,3.73355497,180.46,180.43,38.34]
[1753933635977,3.1918131,180.47,180.43,38.34]
[1753933636173,3.73355816,180.46,180.43,41.5318131]
[1753933636481,3.73403072,180.47,180.43,41.5318131]
[1753933636689,3.1918131,180.48,180.43,41.5318131]
[1753933636873,3.73378057,180.47,180.43,41.5318131]
[1753933637074,3.1918131,180.48,180.43,41.5318131]
[1753933637276,3.73378475,180.47,180.43,41.5318131]
[1753933637475,3.1918131,180.48,180.43,41.5318131]
[1753933637690,3.73380644,180.47,180.43,38.34]
[1753933637993,3.1918131,180.48,180.43,38.34]
[1753933638198,6.92561954,180.47,180.43,38.34]
[1753933638401,3.1918131,180.47,180.43,38.34]
[1753933648207,3.1918131,180.48,180.43,41.5318131]
[1753933652204,3.73417509,180.5,180.47,3.1918131]
[1753933652508,3.1918131,180.52,180.48,38.34]
[1753933652810,3.73421411,180.51,180.48,38.34]
[1753933652995,3.1918131,180.52,180.48,38.34]
[1753933653304,6.9258254,180.51,180.48,38.34]
[1753933653515,3.1918131,180.51,180.48,38.34]
[1753933655109,3.1918131,180.5,180.48,38.34]
[1753933655407,3.7324426,180.52,180.48,38.34]
[1753933655604,3.1918131,180.5,180.48,38.34]
[1753933659606,3.72915629,180.52,180.48,38.34]
[1753933659790,3.1918131,180.51,180.48,38.34]
[1753933660213,3.1918131,180.5,180.48,38.34]
[1753933667018,3.1918131,180.51,180.48,38.34]
[1753933667516,3.75670988,180.53,180.48,38.34]
[1753933667820,3.1918131,180.51,180.48,38.34]
[1753933668918,3.1918131,180.5,180.48,38.34]
[1753933669118,3.75670988,180.53,180.48,38.34]
[1753933669326,3.1918131,180.5,180.48,38.34]
[1753933672420,3.1918131,180.51,180.48,38.34]
[1753933677804,3.75670988,180.53,180.48,38.34]
[1753933678124,3.1918131,180.51,180.48,38.34]
[1753933678624,3.1918131,180.51,180.48,38.4]
[1753933681418,0.03,180.53,180.48,38.4]
[1753933681419,0.03,180.53,180.5,3.1918131]
[1753933681626,0.03,180.53,180.51,38.34]
[1753933692627,3.2218131,180.53,180.51,38.34]
[1753933693734,0.03,180.53,180.51,38.34]
[1753933693935,3.2218131,180.53,180.51,38.34]
[1753933696026,0.03,180.53,180.51,38.34]
[1753933698824,3.2218131,180.53,180.51,38.34]
[1753933700733,0.03,180.53,180.51,38.34]
[1753933702531,3.1918131,180.52,180.49,0.06]
[1753933702749,0.03,180.53,180.49,0.06]
[1753933702750,3.1918131,180.51,180.5,38.32]
[1753933702918,3.1918131,180.52,180.5,38.32]
[1753933703242,0.03,180.53,180.5,38.32]
[1753933703424,3.1918131,180.52,180.5,38.32]
[1753933705913,0.03,180.53,180.5,38.32]
[1753933706116,3.2218131,180.53,180.5,38.32]
[1753933706393,0.03,180.53,180.51,3.1918131]
[1753933707037,0.03,180.53,180.52,3.1918131]
[1753933709343,0.03,180.53,180.51,3.1918131]
[1753933711140,0.03,180.53,180.52,3.1918131]
[1753933713472,0.03,180.53,180.51,3.1918131]
[1753933721075,0.03,180.53,180.52,3.1918131]
[1753933721397,0.03,180.54,180.53,16.78468397]
[1753933721562,0.03,180.55,180.53,16.78468397]
[1753933721563,1e-08,180.55,180.54,15.9590655]
[1753933721759,1e-08,180.55,180.54,10.08159707]
[1753933722184,1e-08,180.55,180.54,22.84884947]
[1753933723881,1e-08,180.55,180.54,39.63353344]
[1753933724484,1e-08,180.61,180.55,16.78468397]
[1753933724786,1e-08,180.61,180.6,3.1918131]
[1753933725157,1e-08,180.61,180.6,41.5718131]
[1753933725365,1e-08,180.61,180.6,3.1918131]
[1753933725766,1e-08,180.61,180.6,41.5718131]
[1753933727773,1e-08,180.61,180.6,41.5518131]
[1753933728281,1e-08,180.61,180.6,3.1918131]
[1753933728480,1e-08,180.61,180.6,41.5518131]
[1753933729783,1e-08,180.61,180.6,44.37435798]
[1753933733604,1e-08,180.61,180.6,6.01435798]
[1753933733909,1e-08,180.61,180.6,44.35435798]
[1753933734270,1e-08,180.61,180.6,6.01435798]
[1753933734501,1e-08,180.61,180.6,44.35435798]
[1753933739801,1e-08,180.61,180.6,41.16254488]
[1753933740003,1e-08,180.61,180.6,44.35435798]
[1753933745501,1e-08,180.61,180.6,38.32]
[1753933747111,1e-08,180.61,180.59,3.1918131]
[1753933747399,1e-08,180.61,180.6,38.32]
[1753933751432,1e-08,180.61,180.6,41.5118131]
[1753933752113,1e-08,180.61,180.6,38.32]
[1753933753302,1e-08,180.61,180.58,3.1918131]
[1753933753502,3.1918131,180.59,180.57,39.9]
[1753933753713,3.1918131,180.58,180.57,39.9]
[1753933754009,3.1918131,180.59,180.57,78.24]
[1753933755886,3.1918131,180.6,180.57,78.24]
[1753933756093,3.19181311,180.61,180.57,78.24]
[1753933756796,3.19181311,180.61,180.58,38.34]
[1753933758309,3.19181311,180.61,180.57,39.9]
[1753933758493,3.19181311,180.61,180.58,38.34]
[1753933758697,3.1918131,180.6,180.58,38.34]
[1753933763313,1e-08,180.61,180.58,38.34]
[1753933763615,3.1918131,180.6,180.58,38.34]
[1753933763917,3.1918131,180.59,180.58,38.34]
[1753933765617,3.1918131,180.59,180.57,39.9]
[1753933765817,3.1918131,180.59,180.58,38.34]
[1753933772397,0.03,180.6,180.58,38.34]
[1753933772821,3.1918131,180.59,180.58,38.34]
[1753933774906,3.1918131,180.59,180.57,39.9]
[1753933775105,3.1918131,180.58,180.57,39.9]
[1753933775305,3.1918131,180.58,180.57,78.22]
[1753933777003,3.1918131,180.58,180.57,78.24]
[1753933784426,6.91476331,180.58,180.57,78.24]
[1753933785433,3.1918131,180.58,180.57,78.24]
[1753933785609,6.91476331,180.58,180.57,78.24]
[1753933785808,3.1918131,180.58,180.57,78.24]
[1753933786010,6.91476331,180.58,180.57,78.24]
[1753933786432,3.1918131,180.58,180.57,78.24]
[1753933789240,6.91476331,180.58,180.57,38.34]
[1753933793943,3.1918131,180.58,180.57,38.34]
[1753933797549,6.91476331,180.58,180.57,38.34]
[1753933797952,3.1918131,180.58,180.57,38.34]
[1753933802058,3.75295021,180.59,180.57,38.34]
[1753933802257,3.2218131,180.59,180.57,38.34]
[1753933802563,0.03,180.59,180.57,38.34]
[1753933805261,0.03,180.59,180.58,3.1918131]
[1753933806048,1e-08,180.59,180.58,3.74558428]
[1753933806763,1e-08,180.61,180.6,3.1918131]
[1753933810454,1e-08,180.61,180.6,38.4]
[1753933811343,3.19181311,180.61,180.55,0.06]
[1753933811644,3.1918131,180.59,180.56,38.4]
[1753933812867,4.97438027,180.59,180.56,38.4]
[1753933813268,4.97438027,180.6,180.56,38.4]
[1753933814165,4.97438028,180.61,180.56,43.37438027]
[1753933814875,4.97438028,180.61,180.56,38.4]
[1753933816264,1e-08,180.61,180.56,43.37438027]
[1753933816567,1e-08,180.61,180.57,4.97438027]
[1753933817552,1e-08,180.61,180.58,4.97438027]
[1753933817759,1e-08,180.61,180.59,38.4]
[1753933819053,4.97438028,180.61,180.59,38.4]
[1753933819552,1e-08,180.61,180.59,38.4]
[1753933821769,1e-08,180.61,180.59,43.37438027]
[1753933822467,1e-08,180.61,180.59,38.4]
[1753933823774,1e-08,180.61,180.59,43.37438027]
[1753933825957,1e-08,180.63,180.59,43.37438027]
[1753933827675,4.97438028,180.63,180.59,38.4]
[1753933829177,1e-08,180.63,180.59,38.4]
[1753933829378,4.97438028,180.63,180.59,38.4]
[1753933829978,1e-08,180.63,180.59,38.4]
[1753933830473,4.97438028,180.63,180.59,38.4]
[1753933830784,4.97438027,180.61,180.55,16.84468397]
[1753933831083,4.97438027,180.6,180.56,38.42]
[1753933832261,4.97438027,180.6,180.55,21.81906424]
[1753933832454,4.97438027,180.6,180.56,38.42]
[1753933832673,4.97438027,180.59,180.56,38.42]
[1753933832880,4.97438027,180.59,180.56,38.48]
[1753933837972,4.97438027,180.6,180.56,38.48]
[1753933839866,4.97438027,180.59,180.56,38.48]
[1753933840172,4.97438027,180.57,180.56,0.06]
[1753933840376,4.97438027,180.57,180.56,38.46]
[1753933840580,4.97438027,180.58,180.56,38.46]
[1753933842290,4.97438027,180.59,180.56,38.46]
[1753933845596,4.97438027,180.57,180.56,38.46]
[1753933845797,4.97438027,180.58,180.56,38.46]
[1753933846283,3.73096968,180.62,180.56,38.46]
[1753933846482,4.97438027,180.58,180.56,38.46]
[1753933848878,3.18388923,180.58,180.56,0.06]
[1753933849082,3.18388923,180.58,180.57,38.4]
[1753933851504,3.18388923,180.58,180.56,0.06]
[1753933851703,3.18388923,180.57,180.56,0.06]
[1753933851883,3.18388923,180.57,180.56,38.44]
[1753933852883,4.97627703,180.57,180.56,38.44]